bitfinex/quotes_SOLUSD_20250102
["timestamp","ask_amount","ask_price","bid_price","bid_amount"]
[1735830843130,20.01737052,207.97,207.93,0.12549]
[1735830843427,20.01737052,208.0,207.93,0.25098]
[1735830844003,20.01737052,207.98,207.93,0.12549]
[1735830844328,20.01737052,207.98,207.92,7.8712]
[1735830845597,20.01737052,207.96,207.92,7.8712]
[1735830845803,20.01737052,207.96,207.92,6.3684]
[1735830846345,20.0,207.97,207.92,6.3684]
[1735830846500,20.01737052,207.98,207.92,6.3684]
[1735830846827,36.0489,208.05,207.93,20.26835052]
[1735830846828,20.01737052,208.0,207.93,20.26835052]
[1735830847035,12.0163,208.05,207.95,20.01737052]
[1735830847036,20.01737052,208.02,207.95,20.01737052]
[1735830847533,20.01737052,208.02,207.96,0.25098]
[1735830847703,20.01737052,208.04,207.96,0.25098]
[1735830847903,20.01737052,208.06,207.98,0.25098]
[1735830848906,12.0128,208.12,208.03,20.01737052]
[1735830849103,20.01737052,208.11,208.04,0.12549]
[1735830849305,20.01737052,208.11,208.04,6.59389]
[1735830849604,1.5191,208.18,208.06,0.12549]
[1735830849605,20.01737052,208.13,208.06,0.12549]
[1735830850340,20.01737052,208.13,208.07,0.12549]
[1735830850526,20.01737052,208.15,208.08,0.12549]
[1735830851335,20.01737052,208.17,208.1,0.25098]
[1735830852316,12.0082,208.2,208.05,0.72067748]
[1735830852317,20.01737052,208.13,208.05,20.01737052]
[1735830852935,20.01737052,208.13,208.06,0.12549]
[1735830853632,20.01737052,208.13,208.05,20.01737052]
[1735830854021,20.01737052,208.13,208.06,0.25098]
[1735830854220,20.01737052,208.15,208.07,20.01737052]
[1735830854445,20.01737052,208.15,208.08,0.12549]
[1735830855224,20.01737052,208.09,208.04,6.4684]
[1735830855921,20.0,208.08,208.04,6.4684]
[1735830856327,20.01737052,208.11,208.05,0.37647]
[1735830856533,20.01737052,208.13,208.05,20.39384052]
[1735830856827,20.0,208.1,208.05,20.39384052]
[1735830857337,20.01737052,208.13,208.05,20.39384052]
[1735830859111,20.01737052,208.13,208.05,0.25098]
[1735830859317,20.01737052,208.11,208.04,6.4684]
[1735830859611,20.01737052,208.11,208.05,0.25098]
[1735830861149,20.01737052,208.11,208.05,0.37647]
[1735830861442,20.01737052,208.18,208.11,0.25098]
[1735830862645,20.01737052,208.16,208.09,24.153354]
[1735830862940,20.01737052,208.16,208.09,0.12549]
[1735830863143,20.01737052,208.14,208.06,20.01737052]
[1735830864052,20.01737052,208.12,208.04,26.48577052]
[1735830864432,20.01737052,208.12,208.05,0.25098]
[1735830864841,20.01737052,208.1,208.04,6.4684]
[1735830865031,20.01737052,208.08,208.04,6.4684]
[1735830865232,20.01737052,208.06,207.99,8.2209]
[1735830865446,20.01737052,208.04,207.99,8.2209]
[1735830865762,20.01737052,208.04,207.99,6.6295]
[1735830866071,20.0,208.01,207.95,20.01737052]
[1735830866362,20.01737052,208.0,207.94,7.7784]
[1735830866529,20.01737052,208.0,207.95,0.12549]
[1735830866958,20.01737052,208.0,207.94,7.7784]
[1735830867166,20.01737052,208.0,207.95,0.12549]
[1735830867468,40.01737052,208.01,207.95,0.12549]
[1735830867647,40.01737052,208.01,207.94,27.79577052]
[1735830867851,20.01737052,208.0,207.94,7.7784]
[1735830868055,20.01737052,208.0,207.95,0.12549]
[1735830868250,20.01737052,208.02,207.95,0.25098]
[1735830868566,20.01737052,208.02,207.95,20.26835052]
[1735830869633,20.01737052,208.02,207.95,20.14286052]
[1735830869833,24.0293,208.08,207.95,20.14286052]
[1735830869834,20.01737052,208.0,207.95,0.12549]
[1735830870841,20.01737052,208.0,207.94,7.7784]
[1735830871244,20.01737052,207.98,207.94,6.1724]
[1735830871743,20.01737052,207.98,207.89,27.79757052]
[1735830871944,20.01737052,207.96,207.89,7.7802]
[1735830872439,20.01737052,207.92,207.85,20.01737052]
[1735830872967,20.01737052,207.92,207.84,7.7096]
[1735830873354,20.01737052,207.92,207.86,0.12549]
[1735830873655,12.0215,207.96,207.86,0.12549]
[1735830873656,20.01737052,207.94,207.88,0.25098]
[1735830873967,20.01737052,207.97,207.9,20.14286052]
[1735830874186,40.01737052,207.97,207.9,0.12549]
[1735830875367,20.01737052,207.95,207.88,0.25098]
[1735830876765,20.01737052,207.93,207.86,20.73875088]
[1735830876971,20.01737052,207.94,207.86,20.01737052]
[1735830877484,20.01737052,207.95,207.87,44.17072452]
[1735830877679,20.01737052,207.95,207.87,20.26835052]
[1735830878085,20.01737052,207.88,207.84,7.7096]
[1735830878284,20.01737052,207.87,207.84,7.7096]
[1735830878588,20.01737052,207.87,207.81,7.52449421]
[1735830879200,20.01737052,207.87,207.8,20.01737052]
[1735830879395,20.01737052,207.89,207.81,24.153354]
[1735830879600,20.01737052,207.91,207.83,0.25098]
[1735830882801,20.01737052,207.93,207.85,0.25098]
[1735830883085,21.92172681,208.0,207.87,0.25098]
[1735830883086,20.01737052,207.95,207.87,0.25098]
[1735830883264,20.01737052,207.93,207.87,0.25098]
[1735830883769,20.01737052,207.91,207.84,20.01737052]
[1735830883963,20.01737052,207.93,207.84,20.01737052]
[1735830884218,20.01737052,207.93,207.86,20.01737052]
[1735830884402,20.01737052,207.93,207.87,0.12549]
[1735830884565,20.01737052,207.91,207.87,0.12549]
[1735830884963,20.01737052,207.91,207.86,0.12549]
[1735830885363,20.01737052,207.93,207.86,0.12549]
[1735830888488,20.01737052,207.95,207.87,0.25098]
[1735830891793,1.8936516,208.01,207.93,20.01737052]
[1735830891794,20.01737052,208.01,207.93,20.01737052]
[1735830891992,20.01737052,208.02,207.94,20.26835052]
[1735830892294,6.6057,208.09,207.94,20.26835052]
[1735830892295,20.01737052,208.03,207.97,0.12549]
[1735830893072,20.01737052,208.01,207.94,20.01737052]
[1735830893278,20.01737052,207.99,207.92,20.01737052]
[1735830895782,20.01737052,208.03,207.96,0.12549]
[1735830895982,20.01737052,208.03,207.96,0.25098]
[1735830897399,20.01737052,208.01,207.93,20.01737052]
[1735830897588,20.01737052,207.99,207.91,20.01737052]
[1735830897784,20.01737052,208.01,207.93,20.01737052]
[1735830898091,20.01737052,208.01,207.94,0.12549]
[1735830899913,20.01737052,207.99,207.91,20.01737052]
[1735830900275,20.01737052,208.01,207.94,0.25098]
[1735830900903,20.01737052,207.99,207.94,0.12549]
[1735830901105,20.01737052,207.96,207.88,28.10747052]
[1735830901778,20.01737052,207.96,207.89,0.25098]
[1735830902110,20.01737052,207.93,207.88,8.0901]
[1735830902276,12.51897089,207.91,207.83,20.08007089]
[1735830902600,12.51897089,207.95,207.88,0.25098]
[1735830902804,12.51897089,207.99,207.91,12.51897089]
[1735830903007,12.51897089,207.99,207.92,0.25098]
[1735830903308,12.51897089,208.01,207.93,12.51897089]
[1735830903487,12.51897089,207.99,207.92,0.25098]
[1735830904082,1.89887018,208.05,207.89,0.12549]
[1735830904083,12.51897089,207.95,207.89,12.51897089]
[1735830904276,20.02447431,207.98,207.9,20.02447431]
[1735830904787,20.02447431,207.98,207.88,0.37647]
[1735830904979,20.02447431,207.98,207.9,0.37647]
[1735830905578,20.02447431,208.0,207.94,0.12549]
[1735830905781,12.0169,208.04,207.96,0.25098]
[1735830905782,20.02447431,208.04,207.96,0.25098]
[1735830906912,20.02447431,208.04,207.95,21.59437431]
[1735830907122,20.02447431,208.02,207.95,1.5699]
[1735830907688,20.02447431,208.04,207.96,0.25098]
[1735830907906,20.02447431,208.06,207.98,0.37647]
[1735830908214,20.02447431,208.08,208.0,0.25098]
[1735830908386,20.02447431,208.1,208.02,0.12549]
[1735830909086,20.02447431,208.12,208.04,0.25098]
[1735830909407,20.02447431,208.1,208.04,6.3308]
[1735830909596,20.02447431,208.05,207.98,6.3308]
[1735830909795,20.02447431,208.1,207.98,6.3308]
[1735830909796,20.02447431,208.03,207.98,6.3308]
[1735830909994,20.02447431,208.05,207.98,26.35527431]
[1735830910204,20.02447431,208.05,207.99,0.25098]
[1735830910898,20.02447431,208.09,208.01,0.37647]
[1735830911096,20.02447431,208.09,208.03,0.12549]
[1735830911815,20.02447431,208.11,208.03,0.25098]
[1735830912019,20.02447431,208.11,208.05,0.12549]
[1735830912723,20.02447431,208.13,208.07,0.12549]
[1735830913229,20.02447431,208.13,208.06,0.25098]
[1735830913230,20.02447431,208.13,208.06,0.12549]
[1735830913435,20.02447431,208.11,208.04,20.02447431]
[1735830913606,20.02447431,208.11,208.02,20.02447431]
[1735830913816,20.02447431,208.07,207.99,23.776884]
[1735830914011,20.02447431,208.09,208.01,0.37647]
[1735830914199,20.02447431,208.09,208.03,0.12549]
[1735830914612,12.0105,208.16,208.03,0.37647]
[1735830914613,20.02447431,208.11,208.03,0.37647]
[1735830915609,20.02447431,208.13,208.05,1.79988]
[1735830916005,40.02447431,208.13,208.05,1.79988]
[1735830916432,20.02447431,208.13,208.05,1.79988]
[1735830917103,20.02447431,208.17,208.09,26.42226431]
[1735830918033,20.02447431,208.17,208.1,0.12549]
[1735830918417,20.02447431,208.18,208.11,0.12549]
[1735830918618,20.02447431,208.17,208.1,0.12549]
[1735830918819,20.02447431,208.16,208.1,0.25098]
[1735830919025,20.02447431,208.14,208.09,6.2723]
[1735830919335,20.02447431,208.13,208.09,6.2723]
[1735830919634,5.0,208.3,208.13,0.25098]
[1735830919839,20.02447431,208.22,208.14,20.02447431]
[1735830920036,20.02447431,208.2,208.12,20.02447431]
[1735830920531,20.0,208.2,208.14,0.12549]
[1735830920729,20.02447431,208.21,208.14,20.02447431]
[1735830921233,20.02447431,208.22,208.15,21.65976431]
[1735830921436,20.02447431,208.25,208.17,20.02447431]
[1735830921833,20.02447431,208.25,208.18,20.02447431]
[1735830922130,20.02447431,208.25,208.17,20.02447431]
[1735830922333,20.02447431,208.26,208.19,20.02447431]
[1735830922713,20.02447431,208.26,208.2,6.3809]
[1735830923335,20.02447431,208.29,208.22,20.02447431]
[1735830923525,20.02447431,208.3,208.23,20.02447431]
[1735830923944,20.02447431,208.29,208.22,20.02447431]
[1735830924254,20.02447431,208.23,208.2,6.3809]
[1735830924539,20.02447431,208.21,208.15,7.7089]
[1735830924717,20.02447431,208.16,208.1,6.1991]
[1735830925054,20.0,208.23,208.1,6.1991]
[1735830925512,20.0,208.23,208.11,0.12549]
[1735830925717,20.0,208.19,208.11,0.12549]
[1735830926020,20.02447431,208.15,208.11,0.12549]
[1735830926214,20.02447431,208.14,208.1,6.1991]
[1735830926437,20.02447431,208.15,208.1,6.1991]
[1735830926636,20.02447431,208.16,208.1,6.1991]
[1735830926821,20.02447431,208.18,208.11,20.14996431]
[1735830927027,12.0065,208.22,208.1,6.1991]
[1735830927028,20.02447431,208.16,208.1,6.1991]
[1735830927229,20.02447431,208.15,208.1,6.1991]
[1735830927427,20.02447431,208.14,208.1,6.1991]
[1735830927926,32.03507431,208.15,208.1,6.1991]
[1735830929645,20.02447431,208.13,208.06,20.02447431]
[1735830930019,20.02447431,208.15,208.08,20.02447431]
[1735830930215,20.02447431,208.13,208.06,0.25098]
[1735830930521,20.02447431,208.13,208.06,20.27545431]
[1735830930731,20.02447431,208.14,208.07,20.02447431]
[1735830930921,20.02447431,208.13,208.06,20.14996431]
[1735830931524,20.02447431,208.14,208.07,20.02447431]
[1735830932045,20.02447431,208.1,208.05,6.2012]
[1735830932254,20.02447431,208.07,208.05,6.2012]
[1735830932456,20.02447431,208.06,208.0,6.5023]
[1735830932656,20.0,208.07,207.97,19.250477]
[1735830932816,23.776884,208.05,207.95,6.5023]
[1735830933017,0.12549,208.04,207.93,1.5516]
[1735830933238,0.37647,208.02,207.9,6.5023]
[1735830933445,0.37647,208.02,207.87,19.250477]
[1735830933446,5.0,207.97,207.87,19.250477]
[1735830933634,20.0,207.91,207.87,19.250477]
[1735830933837,23.776884,207.94,207.83,7.52449421]
[1735830933838,20.02447431,207.88,207.83,7.52449421]
[1735830934035,20.02447431,207.84,207.83,7.52449421]
[1735830934229,20.02447431,207.87,207.83,7.52449421]
[1735830934436,23.776884,207.95,207.84,20.02447431]
[1735830934437,20.02447431,207.92,207.84,20.02447431]
[1735830934632,20.02447431,207.93,207.85,20.02447431]
[1735830934949,20.02447431,208.0,207.87,20.02447431]
[1735830934950,20.02447431,207.94,207.87,20.02447431]
[1735830935124,20.02447431,207.93,207.86,20.02447431]
[1735830935325,20.02447431,207.92,207.85,20.02447431]
[1735830935648,20.02447431,207.93,207.85,20.02447431]
[1735830935839,20.02447431,207.92,207.85,20.02447431]
[1735830936237,20.02447431,207.91,207.85,0.12549]
[1735830936437,20.02447431,207.92,207.85,20.14996431]
[1735830936956,20.02447431,207.92,207.81,0.72153417]
[1735830936957,20.02447431,207.88,207.81,20.02447431]
[1735830937126,20.02447431,207.88,207.78,6.5023]
[1735830937127,20.02447431,207.86,207.79,20.02447431]
[1735830937326,20.02447431,207.85,207.78,26.52677431]
[1735830937545,20.02447431,207.84,207.78,6.5023]
[1735830937826,20.02447431,207.86,207.79,20.02447431]
[1735830938026,20.02447431,207.86,207.8,0.12549]
[1735830938639,20.02447431,207.84,207.78,6.5023]
[1735830939463,12.0249,207.91,207.79,20.02447431]
[1735830939464,20.02447431,207.86,207.79,20.02447431]
[1735830939642,20.02447431,207.85,207.79,0.12549]
[1735830939960,20.02447431,207.89,207.82,20.14996431]
[1735830940160,20.02447431,207.9,207.83,20.02447431]
[1735830940643,20.02447431,207.86,207.83,0.12549]
[1735830940854,20.02447431,207.87,207.83,0.12549]
[1735830941053,20.02447431,207.88,207.81,20.14996431]
[1735830941536,20.02447431,207.88,207.81,0.12549]
[1735830941945,20.02447431,207.88,207.81,20.14996431]
[1735830942151,20.02447431,207.89,207.83,0.12549]
[1735830942449,20.02447431,207.9,207.83,0.12549]
[1735830942836,20.02447431,207.89,207.83,0.12549]
[1735830943155,20.02447431,207.91,207.83,20.40094431]
[1735830943354,20.02447431,207.94,207.87,0.12549]
[1735830943831,20.02447431,207.95,207.87,20.14996431]
[1735830944034,20.02447431,208.01,207.93,0.12549]
[1735830944237,20.02447431,208.03,207.97,0.12549]
[1735830944435,20.02447431,208.05,207.97,20.14996431]
[1735830944672,20.02447431,208.04,207.97,20.14996431]
[1735830945168,20.02447431,208.03,207.95,20.02447431]
[1735830945457,12.0151,208.08,207.92,20.02447431]
[1735830945458,20.02447431,207.99,207.92,20.02447431]
[1735830945768,20.02447431,207.98,207.91,6.6104]
[1735830945969,20.02447431,208.01,207.94,0.12549]
[1735830946145,20.02447431,208.03,207.96,20.14996431]
[1735830946470,20.02447431,208.02,207.96,0.12549]
[1735830946638,20.02447431,208.04,207.96,20.40094431]
[1735830946836,20.02447431,208.04,207.98,0.12549]
[1735830948085,20.02447431,208.0,207.93,20.02447431]
[1735830948974,20.02447431,208.0,207.93,0.12549]
[1735830949290,20.02447431,208.0,207.93,20.14996431]
[1735830949674,20.02447431,208.0,207.93,0.12549]
[1735830950182,20.02447431,207.98,207.91,6.6104]
[1735830950484,20.02447431,207.98,207.92,0.12549]
[1735830950687,20.02447431,207.94,207.87,20.02447431]
[1735830950883,20.02447431,207.92,207.85,6.0058]
[1735830951285,23.776884,207.99,207.85,6.0058]
[1735830951286,20.02447431,207.91,207.85,6.0058]
[1735830951593,20.02447431,207.91,207.86,0.12549]
[1735830951811,20.02447431,207.92,207.86,0.12549]
[1735830952167,20.02447431,207.92,207.85,26.03027431]
[1735830952691,20.02447431,207.93,207.86,0.37647]
[1735830952869,20.02447431,207.95,207.88,0.12549]
[1735830953064,6.87003948,208.06,207.88,20.40094431]
[1735830953065,20.02447431,207.96,207.88,20.40094431]
[1735830953993,20.02447431,207.98,207.91,0.37647]
[1735830954173,20.02447431,208.0,207.93,0.12549]
[1735830954369,20.02447431,207.99,207.93,0.12549]
[1735830954892,20.02447431,207.96,207.88,20.02447431]
[1735830955267,40.02447431,207.98,207.91,0.12549]
[1735830956067,20.02447431,207.96,207.88,20.02447431]
[1735830956564,20.02447431,207.92,207.85,26.03027431]
[1735830956780,20.02447431,207.91,207.85,6.0058]
[1735830956995,20.02447431,207.91,207.86,0.12549]
[1735830957686,20.02447431,207.91,207.85,6.0058]
[1735830958483,12.0205,207.98,207.83,1.569]
[1735830958484,20.02447431,207.89,207.83,1.569]
[1735830959489,20.02447431,207.88,207.83,1.569]
[1735830959701,20.02447431,207.9,207.83,1.569]
[1735830960896,20.02447431,207.9,207.84,0.12549]
[1735830961103,20.02447431,207.92,207.85,20.02447431]
[1735830961677,20.02447431,207.92,207.84,0.12549]
[1735830962597,20.02447431,207.96,207.88,0.12549]
[1735830962782,20.02447431,208.1,207.91,0.12549]
[1735830962783,20.02447431,207.98,207.91,0.12549]
[1735830963096,20.02447431,208.0,207.93,0.12549]
[1735830963298,20.02447431,207.98,207.92,20.02447431]
[1735830963488,20.02447431,207.98,207.9,20.02447431]
[1735830963693,20.02447431,207.98,207.91,0.12549]
[1735830964002,20.02447431,208.0,207.94,20.02447431]
[1735830964375,20.02447431,208.0,207.93,6.2822]
[1735830964376,20.02447431,207.98,207.93,6.2822]
[1735830964694,35.2525,208.08,207.93,6.2822]
[1735830964695,20.02447431,208.01,207.94,20.14996431]
[1735830965599,20.02447431,208.05,207.98,20.02447431]
[1735830965810,20.02447431,208.07,207.99,0.12549]
[1735830965978,20.02447431,208.07,208.01,0.12549]
[1735830966296,20.02447431,208.09,208.02,20.02447431]
[1735830967088,20.02447431,208.11,208.04,20.02447431]
[1735830967403,20.02447431,208.13,208.06,0.12549]
[1735830968105,20.02447431,208.08,208.05,6.6219]
[1735830968501,20.02447431,208.1,208.05,6.6219]
[1735830968703,20.02447431,208.11,208.05,6.6219]
[1735830968889,20.02447431,208.12,208.06,0.12549]
[1735830969088,20.02447431,208.11,208.06,0.12549]
[1735830969388,20.02447431,208.07,208.05,6.6219]
[1735830969584,20.02447431,208.07,208.0,6.1057]
[1735830969784,20.02447431,208.08,208.0,26.13017431]
[1735830970011,20.02447431,208.08,208.01,20.14996431]
[1735830970187,20.02447431,208.08,208.05,5.0]
[1735830970510,20.02447431,208.09,208.05,5.0]
[1735830971307,20.02447431,208.08,208.05,5.0]
[1735830971715,20.02447431,208.09,208.05,5.0]
[1735830971900,20.02447431,208.09,208.05,10.0]
[1735830972093,40.02447431,208.1,208.05,10.0]
[1735830972899,20.02447431,208.08,208.05,10.0]
[1735830973094,20.02447431,208.07,208.05,10.0]
[1735830973301,20.02447431,208.06,208.05,10.0]
[1735830973686,20.02447431,208.07,208.05,10.0]
[1735830973981,20.02447431,208.08,208.05,10.0]
[1735830974181,20.02447431,208.11,208.05,10.0]
[1735830974409,20.02447431,208.12,208.05,30.02447431]
[1735830974599,20.02447431,208.11,208.05,10.0]
[1735830974990,20.02447431,208.12,208.05,10.0]
[1735830975198,20.02447431,208.13,208.06,20.14996431]
[1735830975595,20.02447431,208.12,208.06,0.12549]
[1735830976195,12.0094,208.17,208.05,10.0]
[1735830976196,20.02447431,208.07,208.05,10.0]
[1735830976414,20.02447431,208.08,208.05,10.0]
[1735830976720,20.02447431,208.07,208.05,10.0]
[1735830977215,20.02447431,208.09,208.05,10.0]
[1735830977626,20.02447431,208.12,208.06,0.12549]
[1735830977831,20.02447431,208.15,208.08,0.12549]
[1735830977992,20.02447431,208.16,208.08,20.02447431]
[1735830978192,12.0089,208.18,208.1,20.02447431]
[1735830978193,20.02447431,208.17,208.1,20.02447431]
[1735830978620,20.02447431,208.17,208.09,20.02447431]
[1735830979029,20.02447431,208.14,208.08,0.12549]
[1735830979364,20.02447431,208.13,208.07,1.5046]
[1735830979510,15.02447431,208.1,208.05,10.0]
[1735830979893,20.02447431,208.09,208.05,10.0]
[1735830980101,20.02447431,208.07,208.05,10.0]
[1735830980826,20.02447431,208.06,208.05,10.0]
[1735830981336,20.02447431,208.06,208.05,15.0]
[1735830981638,55.81705831,208.06,208.05,15.0]
[1735830983102,55.81705831,208.06,208.05,12.3796]
[1735830983442,55.81705831,208.06,208.05,2.818]
[1735830986055,23.776884,208.02,207.95,6.5177]
[1735830986369,23.776884,208.02,207.9,1.5406]
[1735830986370,20.02447431,207.96,207.9,1.5406]
[1735830986662,20.02447431,207.95,207.9,1.5406]
[1735830988035,20.02447431,207.94,207.89,6.0465]
[1735830989154,20.02447431,207.92,207.89,6.0465]
[1735830989653,20.02447431,207.92,207.85,1.5684]
[1735830989872,20.02447431,207.89,207.85,1.5684]
[1735830990054,20.02447431,207.9,207.85,1.5684]
[1735830990357,20.02447431,207.93,207.85,21.59287431]
[1735830990544,20.02447431,207.93,207.86,0.12549]
[1735830990746,20.02447431,207.92,207.86,0.12549]
[1735830991060,20.02447431,207.92,207.85,1.5684]
[1735830991235,20.02447431,207.92,207.85,21.59287431]
[1735830991431,20.02447431,207.92,207.86,0.12549]
[1735830991754,20.02447431,207.93,207.86,0.12549]
[1735830991960,20.02447431,207.93,207.87,20.02447431]
[1735830992456,20.02447431,207.92,207.86,0.12549]
[1735830992636,20.02447431,207.94,207.86,20.14996431]
[1735830993049,20.02447431,207.93,207.86,0.12549]
[1735830993249,20.02447431,207.94,207.86,20.14996431]
[1735830994247,20.02447431,208.0,207.93,0.12549]
[1735830994449,20.02447431,208.06,207.98,20.02447431]
[1735830994748,12.0134,208.1,207.99,20.02447431]
[1735830994749,20.02447431,208.07,207.99,20.02447431]
[1735830995359,20.02447431,208.06,207.99,0.12549]
[1735830995744,20.02447431,208.07,207.99,20.14996431]
[1735830995953,20.02447431,208.08,208.01,20.02447431]
[1735830996140,20.02447431,208.08,208.01,0.12549]
[1735830996340,20.02447431,208.06,208.0,20.02447431]
[1735830996542,20.02447431,208.06,207.98,20.02447431]
[1735830996948,20.02447431,208.06,207.99,20.14996431]
[1735830998472,20.02447431,208.05,207.98,0.12549]
[1735830998675,20.02447431,208.04,207.98,0.12549]
[1735830998842,32.04167431,208.04,207.96,21.59187431]
[1735830999665,20.02447431,208.04,207.97,0.12549]
[1735830999846,20.0,208.03,207.98,20.02447431]
[1735831000367,40.02447431,208.04,207.97,0.12549]
[1735831000570,40.02447431,208.04,207.96,21.59187431]
[1735831000571,20.02447431,208.02,207.96,1.5674]
[1735831002355,20.02447431,208.06,207.99,0.37647]
[1735831002670,20.02447431,208.08,208.01,0.12549]
[1735831002978,20.02447431,208.08,208.0,20.02447431]
[1735831002979,20.02447431,208.12,208.04,20.02447431]
[1735831003187,20.02447431,208.12,208.05,0.12549]
[1735831003491,20.02447431,208.12,208.07,0.12549]
[1735831003653,32.03557431,208.15,208.07,20.14996431]
[1735831003843,20.02447431,208.17,208.11,20.02447431]
[1735831004046,20.02447431,208.18,208.11,20.02447431]
[1735831004247,20.02447431,208.2,208.13,20.02447431]
[1735831004469,12.0064,208.23,208.12,0.12549]
[1735831004470,20.02447431,208.22,208.15,20.02447431]
[1735831004647,32.03087431,208.23,208.16,0.12549]
[1735831004843,20.02447431,208.2,208.13,20.02447431]
[1735831005070,20.02447431,208.2,208.14,0.12549]
[1735831005488,12.0064,208.23,207.99,6.4351]
[1735831005489,23.776884,208.14,207.99,6.4351]
[1735831005692,17.0064,208.23,208.05,20.02447431]
[1735831005693,20.02447431,208.13,208.05,20.02447431]
[1735831005992,20.0,208.2,208.11,0.12549]
[1735831006476,20.02447431,208.12,208.03,20.02447431]
[1735831006660,20.02447431,208.13,208.06,20.02447431]
[1735831006862,20.02447431,208.13,208.07,0.37647]
[1735831007172,20.02447431,208.13,208.07,0.12549]
[1735831007388,20.02447431,208.13,208.05,20.02447431]
[1735831007559,20.02447431,208.13,208.0,20.74525538]
[1735831007560,20.02447431,208.14,208.06,20.02447431]
[1735831007872,20.02447431,208.08,208.01,0.12549]
[1735831008052,20.02447431,208.08,208.01,0.37647]
[1735831008454,20.02447431,208.1,208.03,0.37647]
[1735831008891,20.02447431,208.1,207.92,170.6]
[1735831008892,20.02447431,208.04,207.96,20.02447431]
[1735831009096,20.02447431,208.04,207.97,0.37647]
[1735831009565,20.02447431,208.06,207.99,0.12549]
[1735831009887,20.02447431,208.1,208.03,0.12549]
[1735831010189,20.02447431,208.1,208.03,0.37647]
[1735831010665,20.02447431,208.08,207.99,20.02447431]
[1735831010865,20.02447431,208.1,208.03,20.02447431]
[1735831011179,20.02447431,208.08,208.02,6.4313]
[1735831011474,20.02447431,208.06,208.02,6.4313]
[1735831011670,20.02447431,208.06,207.99,20.02447431]
[1735831011867,20.02447431,208.06,208.0,0.12549]
[1735831012266,20.02447431,208.04,207.94,20.02447431]
[1735831012469,20.02447431,208.02,207.95,0.37647]
[1735831012760,20.02447431,208.02,207.94,20.02447431]
[1735831013153,20.02447431,208.02,207.95,0.37647]
[1735831013770,12.0165,208.05,207.92,20.02447431]
[1735831013771,20.02447431,208.0,207.92,20.02447431]
[1735831013992,20.02447431,208.0,207.93,0.37647]
[1735831014163,20.02447431,208.0,207.93,0.12549]
[1735831014563,20.02447431,208.0,207.92,20.02447431]
[1735831014994,20.02447431,208.0,207.93,0.37647]
[1735831015165,20.02447431,208.0,207.85,1.5997]
[1735831015166,20.02447431,207.96,207.88,20.02447431]
[1735831015356,20.02447431,207.94,207.86,20.02447431]
[1735831015557,20.02447431,207.94,207.84,20.02447431]
[1735831015781,20.02447431,207.92,207.84,20.02447431]
[1735831016578,20.02447431,207.88,207.81,26.998109]
[1735831016785,36.31198,207.98,207.83,0.12549]
[1735831016786,20.02447431,207.9,207.83,0.12549]
[1735831019184,20.02447431,207.94,207.87,0.12549]
[1735831019489,11.6131,208.04,207.91,0.12549]
[1735831019490,20.02447431,207.98,207.91,0.12549]
[1735831020271,20.02447431,207.98,207.91,0.37647]
[1735831020478,20.02447431,207.98,207.91,0.12549]
[1735831020765,20.02447431,207.98,207.82,35.0]
[1735831020766,20.02447431,207.94,207.88,20.02447431]
[1735831021089,20.02447431,207.94,207.89,0.37647]
[1735831021267,20.02447431,207.94,207.89,0.12549]
[1735831021772,20.02447431,207.96,207.89,0.12549]
[1735831022966,20.02447431,207.96,207.89,0.37647]
[1735831023194,20.02447431,207.98,207.91,0.12549]
[1735831023405,20.02447431,207.96,207.91,0.12549]
[1735831024308,20.02447431,207.96,207.9,0.12549]
[1735831024806,32.04487431,207.98,207.9,20.40094431]
[1735831025410,20.02447431,208.04,207.97,0.12549]
[1735831025705,20.02447431,208.08,208.01,20.02447431]
[1735831026063,20.02447431,208.04,207.98,19.251998]
[1735831026268,20.02447431,208.03,207.95,20.02447431]
[1735831026468,32.04167431,208.04,207.96,20.14996431]
[1735831026943,20.02447431,208.0,207.95,19.255234]
[1735831027079,20.02447431,207.97,207.93,6.1088]
[1735831027283,20.02447431,207.97,207.94,0.12549]
[1735831027700,20.02447431,207.99,207.94,0.12549]
[1735831028272,20.02447431,207.99,207.93,6.1088]
[1735831028495,20.02447431,207.97,207.93,6.1088]
[1735831029008,20.02447431,207.97,207.92,1.6645]
[1735831029592,20.02447431,207.95,207.88,25.500447]
[1735831029798,20.02447431,207.93,207.88,6.2413]
[1735831030204,20.02447431,207.93,207.86,1.6036]
[1735831030372,20.02447431,207.87,207.79,20.02447431]
[1735831030568,6.6061,207.92,207.76,7.52449421]